Cogmind - Beta 10 X2 --- EXPLORER MODE // 2020.07.18 @ 21:25:16 // Experiment/BattleRoyale Player: Minty Result: Destroyed by OmegaForm-11 with Fusion Bomb Launcher Performance ------------- Evolutions (0) 0 Regions Visited (0) 0 Robots Destroyed (1) 5 Value Destroyed (500) 500 Prototype IDs (0) 0 Alien Tech Used (0) 0 Bonus (0) 0 TOTAL SCORE: 505 Bonus ------- None Cogmind --------- Core Integrity 0/250 Matter 300/300 Energy 200/200 System Corruption 0% Temperature Cool (67) Movement Treading (180) Location -5/Wartown Parts ------- > --- POWER (3) -------- Light Angular Momentum Engine Light Angular Momentum Engine > --- PROPULSION (4) --- Improved Heavy Siege Treads > --- UTILITY (6) ------ Advanced Weight Redist. System Advanced Visual Processing Unit Long-range Sensor Array Advanced Salvage Targeting Computer Microactuators Hardened Medium Armor Plating > --- WEAPON (3) ------- Axe Greatsword > --- INVENTORY (4) ---- (None) Peak State ------------ > --- POWER ------------ Light Angular Momentum Engine Light Angular Momentum Engine > --- PROPULSION ------- Improved Heavy Siege Treads Flexi-carbon Leg Impulse Thruster > --- UTILITY ---------- Advanced Weight Redist. System Advanced Visual Processing Unit Long-range Sensor Array Advanced Salvage Targeting Computer Microactuators Makeshift Cloaking Device > --- WEAPON ----------- Axe Greatsword > --- INVENTORY -------- (None) [Rating: 74] Favorites ----------- Power Light Angular Momentum Engine Engine Light Angular Momentum Engine Propulsion Improved Heavy Siege Treads Treads Improved Heavy Siege Treads Leg Flexi-carbon Leg Flight Unit Impulse Thruster Utility Advanced Weight Redist. System Device Advanced Weight Redist. System Processor Advanced Visual Processing Unit Protection Hardened Medium Armor Plating Weapon Axe Slashing Weapon Axe Build | -5 ------- Run | Tow Slots Evolved . | . Power . | . Propulsion . | . Utility . | . Weapon . | . Parts Attached 1 | 1 Power . | . Engine . | . Core . | . Reactor . | . Propulsion . | . Treads . | . Leg . | . Wheel . | . Hover . | . Flight . | . Utility 1 | 1 Device . | . Storage . | . Processor . | . Hackware . | . Protection 1 | 1 Artifact . | . Weapon . | . Energy Gun . | . Energy Cannon . | . Ballistic Gun . | . Ballistic Cannon . | . Launcher . | . Special Weapon . | . Impact Weapon . | . Slashing Weapon . | . Piercing Weapon . | . Special Melee Weapon . | . Unidentified Prototypes . | . Parts Lost 1 | 1 Power . | . Propulsion . | . Utility 1 | 1 Weapon . | . Highest Loss Streak 1 | 1 Average Slot Usage (%) 70 | 70 Engine 12 | 12 Treads 6 | 6 Device 21 | 21 Processor 12 | 12 Protection 3 | 3 Slashing Weapon 12 | 12 Naked Turns . | . Heaviest Build 38 | 38 Greatest Support 84 | 84 Greatest Overweight (x) . | . Average Overweight (x) . | . Largest Inventory Capacity 4 | 4 Average Capacity 4 | 4 Most Carried . | . Average Carried . | . Final Capacity 4 | 4 Final Carried . | . Class Distribution -------------------- 100% | Hacker-Gladiator Dominant Class ---------------- Hacker-Gladiator | -5/Wartown Resources | -5 ----------- Run | Tow Matter Collected . | . Remotely . | . Salvage Created 81 | 81 Parts . | . Haulers Intercepted . | . Recyclers Shooed . | . Parts Field Recycled . | . Retrieved Matter . | . Parts Self-Destructed . | . Prevented . | . Kills | -5 ------- Run | Tow Combat Hostiles Destroyed 1 | 1 Melee 1 | 1 Classes Destroyed 1 | 1 Player 1 | 1 Best Kill Streak 1 | 1 Combat Bots Only 1 | 1 Max Kills in Single Turn 1 | 1 Gunslinging . | . Exploded . | . Melee 1 | 1 Uniques/NPCs Destroyed . | . Combat | -5 -------- Run | Tow Damage Taken 772 | 772 Core 377 | 377 Absorbed by Shields . | . Redirected to Core 4488 | 4488 Core Remaining (%) . | . Volleys Fired . | . Largest . | . Hottest . | . Shots Fired . | . Gun . | . Cannon . | . Launcher . | . Special . | . Kinetic . | . Thermal . | . Explosive . | . Electromagnetic . | . Robot Hit Streak . | . Robot Miss Streak . | . Penetration Max . | . Secondary Targets . | . Shots Hit Robots 15 | 15 Core Hits 1 | 1 Critical Hits 1 | 1 Critical Kills . | . Critical Parts Destroyed 1 | 1 Melee Attacks 21 | 21 Impact . | . Slashing 21 | 21 Piercing . | . Sneak Attacks . | . Combat Hostiles . | . Follow-up Attacks 2 | 2 Damage Inflicted 765 | 765 Guns . | . Cannons . | . Explosions 32 | 32 Melee 733 | 733 Ramming . | . Kinetic . | . Thermal . | . Explosive . | . Electromagnetic 32 | 32 Impact . | . Slashing 733 | 733 Piercing . | . Highest Corruption . | . Average Corruption . | . Corruption Purged . | . Overload Shots . | . Overflow Damage . | . Projectiles . | . Explosions . | . Melee . | . Knockbacks . | . Impact . | . Kinetic . | . Secondary . | . Self-Inflicted Damage 27 | 27 Shots 1 | 1 Rammed . | . Targets Rammed . | . Kicked . | . Crushed . | . Highest Temperature 67 | 67 Average Temperature 8 | 8 Received Heat Transfer 93 | 93 Siege Activations . | . Robots Corrupted . | . Combat Hostiles . | . Parts Fried . | . Impact Corruptions . | . Robots Melted . | . Combat Hostiles . | . Parts Melted 3 | 3 Heat Transferred . | . Parts Sabotaged . | . Parts Stolen . | . Parts Stripped . | . Power Chain Reactions . | . Missiles Intercepted . | . Alert | -5 ------- Run | Tow Peak Influence . | . Average Influence . | . Maximum Alert Level . | . Low Security (%) . | . Level 1 . | . Level 2 . | . Level 3 . | . Level 4 . | . Level 5 . | . High Security . | . Max Security . | . Squads Dispatched . | . Investigation . | . Extermination . | . Reinforcement . | . Assault . | . Garrison . | . Intercept . | . Construction Impeded . | . Haulers Reinforced . | . Stealth | -5 --------- Run | Tow Distress Signals . | . Communications Jammed . | . Distress Signals . | . Times Spotted 2 | 2 Peak Tracking Total 1 | 1 Tactical Retreats . | . Traps | -5 ------- Run | Tow Traps Triggered . | . Indirectly . | . Trap Hack Attempts . | . Triggered . | . Disarmed . | . Reprogrammed . | . Reused . | . Traps Extracted . | . Installed . | . Triggered . | . Machines | -5 ---------- Run | Tow Machines Disabled 1 | 1 Max in Single Turn 1 | 1 Machines Sabotaged . | . Garrisons Compromised . | . Overloaded Fab Kills . | . Fab Network Shutdowns . | . Hacking | -5 --------- Run | Tow Machines Accessed . | . Terminals . | . Fabricators . | . Repair Stations . | . Recycling Units . | . Scanalyzers . | . Garrison Access . | . Total Hacks . | . Successful . | . Failed . | . Catastrophic . | . Database Lockouts . | . Manual . | . Terminals . | . Fabricators . | . Repair Stations . | . Recycling Units . | . Scanalyzers . | . Garrison Access . | . Terminal Hacks . | . Fabricator Hacks . | . Repair Station Hacks . | . Recycling Unit Hacks . | . Scanalyzer . | . Garrison Access Hacks . | . Unauthorized Hacks . | . Terminals . | . Fabricators . | . Repair Stations . | . Recycling Units . | . Scanalyzers . | . Garrison Access . | . Data Cores Recovered . | . Used . | . Hacking Detections . | . Full Trace Events . | . Feedback Events . | . Feedback Blocked . | . Robot Schematics Acquired . | . Robots Built . | . Matter . | . Time . | . Total Robot Build Rating . | . Part Schematics Acquired . | . Parts Built . | . Matter . | . Time . | . Total Part Build Rating . | . Parts Repaired . | . Time . | . Parts Recycled . | . Recycled Matter . | . Retrieved Matter . | . Retrieved Components . | . Parts Scanalyzed . | . Part Schematics Acquired . | . Parts Damaged . | . Bothacking | -5 ------------ Run | Tow Used RIF Installer . | . Robots Hacked . | . Non-combat . | . Combat . | . Robot Hacks Applied . | . Relay Couplers Released . | . Robots Rewired . | . Allies Hacked . | . Hacks Repelled . | . Allies | -5 -------- Run | Tow Total Allies . | . Largest Group . | . Highest-Rated Group . | . Highest-Rated Ally . | . Total Orders . | . Ally Attacks . | . Total Damage . | . Kills . | . Allies Corrupted . | . Allies Melted . | . Intel | -5 ------- Run | Tow Robot Analysis Total . | . Derelict Logs Recovered . | . Drone Launches . | . Drone Recoveries . | . Exploration | -5 ------------- Run | Tow Turns Passed 218 | 218 Spaces Moved 89 | 89 Core . | . Treads 89 | 89 Legs . | . Wheels . | . Hover . | . Flight . | . Fastest Speed 180 | 180 Average Speed 180 | 180 Slowest Speed 180 | 180 Overloaded Moves . | . Propulsion Burnouts . | . Robots Hopped . | . Cave-ins Triggered . | . Exploration Rate (%) 4 | 4 Regions Visited 1 Branch Regions 1 Pre-discovered Areas . | . Known Exits Taken . | . Unknown Exits Taken . | . Scrap Searched . | . Spaces Dug 2 | 2 Terrain Destroyed 2 | 2 Melee 2 | 2 Projectile . | . AOE . | . Actions | -5 --------- Run | Tow Total 122 | 122 Wait 12 | 12 Move 89 | 89 Hop . | . Pick Up . | . Fast Attach 1 | 1 Attach . | . Detach . | . Swap . | . Drop 2 | 2 Fire . | . Melee 18 | 18 Ram . | . Kick . | . Crush . | . Escape Stasis . | . Rewire . | . Trap . | . Miscellaneous . | . Route ------- -5/Wartown History --------- Turn | Location | Event 75 | -5/Wartown | Core integrity fell below 50% 97 | -5/Wartown | Core integrity fell below 20% 219 | -5/Wartown | Destroyed by OmegaForm-11 with Fusion Bomb Launcher Last Messages --------------- 00085_ Slug penetrates Wall. 00086_ Hellmass-18 Antigrav System severed. 00088_ Penetrated by Slug. 00088_ Slug penetrates Wall. 00092_ Hellmass-18 attaches Imp. Aluminum Leg. 00093_ Mak. Cloaking Device destroyed. 00096_ Penetrated by Slug. 00096_ Hellmass-18 suffers critical hit. 00096_ Destroyed Coil Gun. 00098_ Adv. Melee Analysis Suite melted. 00098_ Hcp. Matter Pod melted. 00098_ Imp. Heavy Treads melted. 00098_ Hellmass-18 destroyed. 00102_ Used Protomatter to restore core integrity (+123, depleted) 00104_ Acquired Hrd. Medium Armor Plating. 00121_ The unstable cave ceiling collapses. 00163_ Nuclear Reactor explodes. 00168_ The unstable cave ceiling collapses. 00179_ Fusion Modulator explodes. 00182_ The unstable cave ceiling collapses. Map ----- +----------------------------------------------------+ | | | | | ????????????????????????????????????? | | ????????????????????????????????????? | | ????????????????????????????????????? | | ????????????????????????????????????? | | ????????????????????????????????????? | | ????????????????????? ????????????? | | ?????????????????? ????????????? | | ???????????????? ????????? ??? | | ?????????????? ???????? ???? | | ??????????????? ######## ???? | | ???????????????? ????? | | ???????????????? ? # | | ????????????????? # | | ?????????????????? # | | ???????????????#### # | | ???????????????# # | | ???????????????# # | | ???????????????# # | | ???????????????# # | | ????????????????? # | | ??????????????????? ? # | | ????????????????????? # # | | ??????????????????????? # | | ????????????????????????#@ # | | ????????????????????????# # | | ????????????????????????# # | | ????????????????????????# # | | ????????????????????????# # | | ????????????????????????# # | | ????????????????????????# # | | ????????????????????????# # | | ????????????????????####### # # | | ???????????????# ??+ # # | | ???????????????# # @ # | | ???????????????# # # | | ???????????????+ # # | | ???????????????# *# | | ???????????????# # | | ?????????????" # # # | | ????????????"" # # ## | | ???????????? " # | | ??????????? " = # # | | ???????????####=%%% # # | | ???????????? % # # | | ???????????? #+"" # | | ???????????? # | | ??????????? ## | | ??????????? # | +----------------------------------------------------+ Best States ------------- Heat Dissipation 25 Energy Generation 31 Energy Capacity 200 Matter Stores 300 Matter Capacity 300 Sight Range 20 Robot Scan Range 20 Terrain Scan Density 10 Cloak Strength 3 Additional Mass Support 9 Armor Coverage 225 Resistance: KI 35 Resistance: TH 35 Resistance: EX 35 Resistance: EM 35 Resistance: I 35 Resistance: S 35 Resistance: P 35 Melee Speed Boost 20 Evasion (%) 40 Recoil Reduction 2 Salvage Targeting 3 Offensive Hacking 20 Item Schematics ----------------- None Robot Schematics ------------------ None Fabricated ------------ Nothing Alien Tech Used ----------------- None Achievements -------------- None Challenges ------------ None Game ------ Seed BehemothShrapnelLog Manual? 0 Play Time 00:04:21 Cumulative 211.1 hours Start 2020.07.18 @ 21:23:02 End 2020.07.18 @ 21:25:16 Sessions 1 Manual Loads 0 Difficulty Explorer Special Mode Experiment/BattleRoyale Game No. 115 Rogue 0 Adventurer 44 Explorer 71 Win Type - Total 3 Types 2/0/1/0/0/0/0 Lore% 53 Gallery% 79 Achievement% 57 Wizard Run 0 Options --------- ASCII 0 Keyboard 0 Movement Mouse Keybinds 0 Fullscreen 1 Font 18/TerminusBold Map View 76x50 Tactical HUD 1 Map Filters NONE Filters SATURATION(100) Steam 1 RUN: 94a5d89f-4cfd-4e62-b2a1-ad60c1b85b4b